bitfinex/quotes_SOLUSD_20260120
["timestamp","ask_amount","ask_price","bid_price","bid_amount"]
[1768914292758,10.17113953,129.06,129.03,2.38102078]
[1768914293073,13.86057274,129.06,129.03,2.38102078]
[1768914293277,10.17113953,129.06,129.03,2.38102078]
[1768914293579,13.86057274,129.06,129.03,2.38102078]
[1768914296067,10.17113953,129.06,129.03,2.38102078]
[1768914296277,14.05267566,129.07,129.03,2.38102078]
[1768914296579,5.50890783,129.06,129.03,2.38102078]
[1768914296781,14.05267566,129.07,129.03,2.38102078]
[1768914297073,5.50890944,129.06,129.03,2.38102078]
[1768914297276,14.05267566,129.07,129.03,2.38102078]
[1768914297479,5.51028217,129.06,129.03,2.38102078]
[1768914297659,10.36324245,129.07,129.03,2.38102078]
[1768914297980,8.12575247,129.06,129.03,2.38102078]
[1768914298178,2.61542039,129.06,129.03,63.88102078]
[1768914300575,2.61542039,129.04,129.03,61.5]
[1768914300754,2.61542039,129.05,129.03,61.5]
[1768914300954,2.61542039,129.05,129.03,63.81837974]
[1768914302271,10.36345802,129.07,129.03,63.81837974]
[1768914302465,5.5199012,129.06,129.04,2.3102297]
[1768914302671,14.05289123,129.07,129.04,2.3102297]
[1768914302871,8.13541625,129.06,129.03,63.8102297]
[1768914303070,5.51985278,129.05,129.03,63.8102297]
[1768914303372,6.3048536,129.06,129.03,63.8102297]
[1768914303578,5.51947355,129.05,129.03,63.8102297]
[1768914303782,6.3048536,129.06,129.03,63.8102297]
[1768914303985,5.51787151,129.05,129.03,63.8102297]
[1768914304284,2.61542039,129.06,129.03,63.8102297]
[1768914304785,14.05289123,129.07,129.04,2.3022658]
[1768914306078,10.36345802,129.07,129.04,2.3022658]
[1768914306281,14.05289123,129.07,129.04,2.3022658]
[1768914306964,14.05614725,129.07,129.04,2.3022658]
[1768914308486,2.61542039,129.05,129.03,61.5]
[1768914308993,6.30810962,129.05,129.03,36.96282456]
[1768914309302,6.30810962,129.04,129.01,2.28314279]
[1768914310588,2.61542039,129.04,129.01,2.28314279]
[1768914312871,2.61542039,129.04,129.01,63.78314279]
[1768914313569,6.30810962,129.04,129.01,63.78314279]
[1768914314486,2.61542039,129.06,129.02,2.26509307]
[1768914314678,5.51955063,129.05,129.02,2.26509307]
[1768914314879,6.30810962,129.06,129.02,2.26509307]
[1768914315080,5.51956701,129.05,129.02,2.26509307]
[1768914315274,2.61542039,129.06,129.02,2.26509307]
[1768914315587,5.51995714,129.05,129.02,2.26509307]
[1768914315791,2.61542039,129.06,129.02,2.26509307]
[1768914315995,5.51995714,129.05,129.02,2.26509307]
[1768914316183,2.61542039,129.06,129.02,2.26509307]
[1768914316494,5.5201174,129.05,129.03,2.25816009]
[1768914316669,2.61542039,129.06,129.03,2.25816009]
[1768914316869,5.52032775,129.05,129.03,2.25816009]
[1768914317065,2.61542039,129.06,129.03,2.25816009]
[1768914317382,5.52032614,129.05,129.03,2.25816009]
[1768914317585,2.61542039,129.06,129.03,2.25816009]
[1768914317772,5.52447701,129.05,129.03,2.25816009]
[1768914317972,2.61542039,129.06,129.03,2.25816009]
[1768914318172,5.52447541,129.05,129.03,2.25816009]
[1768914318372,2.61542039,129.06,129.03,2.25816009]
[1768914318569,5.52523783,129.05,129.03,2.25816009]
[1768914318870,2.61542039,129.06,129.03,2.25816009]
[1768914319071,5.52523783,129.05,129.03,2.25816009]
[1768914319300,2.61542039,129.05,129.02,63.7480564]
[1768914319481,8.14135421,129.04,129.02,61.5]
[1768914319687,2.61542039,129.04,129.02,61.5]
[1768914320997,3.69268923,129.04,129.02,61.5]
[1768914321305,8.14178514,129.03,129.0,2.24151255]
[1768914321477,5.52636475,129.02,129.0,2.24151255]
[1768914321795,6.30810962,129.03,129.0,2.24151255]
[1768914321998,5.52686884,129.02,129.0,2.24151255]
[1768914322297,6.30810962,129.03,129.0,2.24151255]
[1768914322496,5.52628856,129.02,129.0,2.24151255]
[1768914322800,6.30810962,129.03,129.0,2.24151255]
[1768914322981,5.52587651,129.02,129.0,2.24151255]
[1768914323179,2.61542039,129.03,129.0,2.24151255]
[1768914323374,5.52289183,129.02,129.0,2.24151255]
[1768914323594,6.02417562,129.04,129.01,2.23197593]
[1768914323898,5.52341043,129.03,129.01,2.23197593]
[1768914324196,6.02417562,129.04,129.01,2.23197593]
[1768914324397,5.52313073,129.03,129.01,2.23197593]
[1768914324600,6.02417562,129.04,129.01,2.23197593]
[1768914324778,5.52400945,129.03,129.01,2.23197593]
[1768914324974,6.02417562,129.04,129.01,2.23197593]
[1768914325185,5.52402193,129.03,129.01,2.23197593]
[1768914325393,6.02417562,129.04,129.01,2.23197593]
[1768914325594,5.52446177,129.03,129.01,2.23197593]
[1768914325892,6.02417562,129.04,129.01,2.23197593]
[1768914326085,5.52444929,129.03,129.01,2.23197593]
[1768914326284,6.02417562,129.04,129.01,2.23197593]
[1768914326486,3.30126057,129.03,129.02,2.22276417]
[1768914327184,6.02417562,129.05,129.01,7.75131604]
[1768914327500,6.02417562,129.03,128.99,61.6]
[1768914327804,2.33148639,129.03,128.99,61.6]
[1768914328003,2.33148639,129.03,129.0,7.75163776]
[1768914330603,6.02417562,129.05,129.0,11.44432699]
[1768914330785,2.33148639,129.05,129.0,11.44432699]
[1768914330984,6.02417562,129.05,129.0,30.82417195]
[1768914331907,2.33148639,129.05,129.01,3.69268923]
[1768914332298,6.02417562,129.06,129.02,7.75073631]
[1768914334103,6.02417562,129.06,129.01,7.7513371]
[1768914334284,6.02417562,129.06,129.01,11.44402633]
[1768914334708,3.69268923,129.06,129.01,11.44402633]
[1768914334882,6.02417562,129.06,129.01,11.44402633]
[1768914335088,2.33148639,129.05,129.01,7.7513371]
[1768914335606,6.02417562,129.05,129.01,7.7513371]
[1768914336201,6.02417562,129.05,129.01,69.2513371]
[1768914336399,2.33148639,129.04,129.01,69.2513371]
[1768914336596,6.02417562,129.05,129.01,69.2513371]
[1768914337193,2.33148639,129.05,129.01,69.2513371]
[1768914337508,6.02417562,129.05,129.01,69.2513371]
[1768914339492,2.33148639,129.04,129.01,69.2513371]
[1768914340609,6.02417562,129.03,129.01,61.5]
[1768914340815,6.02417562,129.03,129.0,61.5]
[1768914341116,2.33148639,129.01,128.99,0.1]
[1768914341292,6.02417562,129.01,128.99,0.1]
[1768914341492,2.33148639,129.01,128.99,0.07000001]
[1768914341711,6.02417562,129.01,128.99,0.07000001]
[1768914342417,6.02417562,129.0,128.97,61.6]
[1768914342614,6.02417562,129.0,128.97,0.1]
[1768914343089,2.33148639,129.0,128.97,0.1]
[1768914343291,2.38002771,128.98,128.94,61.5]
[1768914343495,2.38002771,128.98,128.92,80.89111248]
[1768914343697,2.38002771,129.0,128.95,11.44756749]
[1768914344310,6.07271694,129.0,128.95,30.83492693]
[1768914344513,2.38002771,128.99,128.95,27.1422377]
[1768914344820,2.38002771,129.0,128.95,30.83492693]
[1768914344995,2.38002771,129.0,128.95,27.1422377]
[1768914345197,2.38002771,129.0,128.95,30.83492693]
[1768914346403,2.38002771,129.0,128.95,27.1422377]
[1768914346599,2.38002771,129.0,128.95,30.83492693]
[1768914347424,2.38002771,129.0,128.95,27.1422377]
[1768914347595,2.38002771,129.0,128.95,30.83492693]
[1768914348013,2.38002771,129.0,128.95,88.6422377]
[1768914348290,2.38002771,129.0,128.95,92.33492693]
[1768914349514,6.07271694,129.0,128.95,88.6422377]
[1768914350413,2.38002771,129.0,128.95,92.33492693]
[1768914351831,3.69268923,128.97,128.95,69.25487826]
[1768914352029,6.07271694,128.99,128.95,69.25487826]
[1768914352193,2.38002771,128.99,128.95,69.25487826]
[1768914352911,6.07271694,128.99,128.95,69.25487826]
[1768914353515,3.69268923,129.0,128.95,69.25487826]
[1768914353713,2.35014388,128.98,128.95,69.2548608]
[1768914355310,6.04283311,128.98,128.95,69.2548608]
[1768914356315,6.04283311,128.98,128.95,61.5]
[1768914356512,7.75206264,129.0,128.95,61.5]
[1768914356513,2.35014388,128.97,128.95,61.5]
[1768914356822,2.35014388,128.96,128.95,61.5]
[1768914357910,6.04283311,128.97,128.95,61.5]
[1768914358527,6.04283311,128.96,128.93,7.75587803]
[1768914358705,6.04283311,128.96,128.94,7.75550643]
[1768914358706,2.35014388,128.96,128.94,7.75550643]
[1768914359018,6.04283311,128.97,128.94,7.75550643]
[1768914359523,2.35014388,128.97,128.94,7.75550643]
[1768914359726,7.7521608,129.0,128.94,7.75550643]
[1768914359727,3.69268923,129.0,128.95,7.75477492]
[1768914359938,6.04283311,129.0,128.95,11.44746415]
[1768914360137,2.35014388,129.0,128.95,11.44746415]
[1768914360425,2.35014388,129.0,128.94,19.38825438]
[1768914360638,2.35014388,129.0,128.95,3.69268923]
[1768914360804,2.35014388,128.99,128.94,19.38825438]
[1768914361135,2.35014388,128.99,128.95,3.69268923]
[1768914361332,2.35014388,128.99,128.93,7.75614674]
[1768914361530,2.35014388,128.99,128.95,3.69268923]
[1768914361902,2.35014388,129.01,128.95,3.69268923]
[1768914362104,2.35014388,129.01,128.95,20.67268923]
[1768914362105,2.35014388,129.0,128.95,20.67268923]
[1768914362310,6.04283311,129.0,128.95,20.67268923]
[1768914362606,6.04283311,129.0,128.95,3.69268923]
[1768914362807,2.35014388,129.0,128.96,3.69268923]
[1768914363113,10.10213089,129.0,128.95,3.69268923]
[1768914363319,13.79482012,129.0,128.95,3.69268923]
[1768914363622,13.79482012,129.0,128.94,11.44815319]
[1768914364118,13.79482012,129.0,128.94,28.42815319]
[1768914364723,10.10213089,129.0,128.95,3.69268923]
[1768914364909,10.1017706,129.01,128.96,3.69268923]
[1768914365108,13.79445983,129.01,128.95,3.69268923]
[1768914365309,10.1017706,129.01,128.95,3.69268923]
[1768914365718,2.35014388,128.99,128.93,19.5]
[1768914365925,2.35014388,128.99,128.94,20.67268923]
[1768914366312,2.35014388,128.99,128.94,16.98]
[1768914366524,2.35014388,128.99,128.94,20.67268923]
[1768914367029,10.10278134,128.99,128.94,20.67691227]
[1768914367233,10.10237499,129.0,128.95,3.69691227]
[1768914367525,7.75223111,129.0,128.95,3.69691227]
[1768914367830,2.35014388,129.02,128.96,3.69691227]
[1768914368126,6.04705615,129.02,128.97,3.69691227]
[1768914368326,2.35014388,129.02,128.98,3.69691227]
[1768914368510,2.35014388,129.03,128.98,3.69691227]
[1768914368706,2.35014388,129.03,128.97,16.98]
[1768914369027,6.04705615,129.02,128.97,16.98]
[1768914369208,2.35014388,129.02,128.97,16.98]
[1768914369403,2.35014388,129.02,128.97,20.67691227]
[1768914369610,10.10085778,129.03,128.97,24.7336237]
[1768914369913,2.35014388,129.02,128.97,28.43053597]
[1768914371229,13.79783642,129.02,128.97,16.98]
[1768914371528,2.35014388,128.99,128.94,11.45217699]
[1768914371730,6.04705615,128.99,128.94,24.73526472]
[1768914371941,2.35014388,128.98,128.94,24.73526472]
[1768914372114,2.35014388,128.98,128.94,16.98]
[1768914373207,2.35014388,128.98,128.93,11.45289408]
[1768914373617,2.35014388,128.98,128.93,7.75598181]
[1768914373812,13.80032003,128.98,128.92,28.43338417]
[1768914374111,2.35014388,128.96,128.92,36.48]
[1768914374310,2.23014385,128.96,128.92,19.5]
[1768914375138,27.13611393,128.98,128.92,19.5]
[1768914375315,3.69691227,128.96,128.92,19.5]
[1768914376438,2.35014388,128.93,128.91,0.1]
[1768914377722,6.04705615,128.93,128.91,0.1]
[1768914377921,2.35014388,128.92,128.88,0.1]
[1768914380141,2.35014388,128.91,128.88,0.1]
[1768914382245,3.69691227,128.92,128.88,0.1]
[1768914382451,2.35014388,128.92,128.88,0.1]
[1768914382628,2.35014388,128.96,128.89,3.69691227]
[1768914382830,8.10545972,128.95,128.9,3.69691227]
[1768914383029,6.04705615,128.95,128.89,3.69691227]
[1768914383221,2.35014388,128.95,128.9,3.69691227]
[1768914384117,2.37277504,128.97,128.91,3.69691227]
[1768914384318,5.75676868,128.96,128.94,3.69691227]
[1768914384539,2.37277504,128.99,128.94,11.45245748]
[1768914384846,5.7594017,128.98,128.94,11.45245748]
[1768914385051,2.37277504,128.98,128.94,11.45245748]
[1768914385357,2.37277504,129.0,128.95,3.69691227]
[1768914385646,8.13445794,128.99,128.95,3.69691227]
[1768914385820,2.37277504,128.99,128.94,30.84132051]
[1768914386624,2.37277504,128.99,128.94,7.75554521]
[1768914386831,8.13478528,128.98,128.94,7.75554521]
[1768914387027,2.37277504,128.98,128.94,7.75554521]
[1768914388845,2.37277504,128.98,128.94,11.45245748]
[1768914390141,2.37277504,128.97,128.93,24.75587463]
[1768914390343,2.37277504,128.96,128.93,24.75587463]
[1768914390514,2.37277504,128.96,128.93,44.25587463]
[1768914391143,2.37277504,128.97,128.93,67.34315376]
[1768914392134,2.37277504,128.97,128.93,47.9527869]
[1768914393124,2.37277504,128.97,128.93,44.25587463]
[1768914393648,2.37277504,128.97,128.93,36.5]
[1768914393820,6.06968731,128.97,128.93,36.5]
[1768914394025,2.37277504,128.96,128.93,19.5]
[1768914394624,2.37277504,128.96,128.91,47.95396538]
[1768914394826,2.37277504,128.96,128.91,30.95396538]
[1768914395025,2.37277504,128.96,128.91,11.45396538]
[1768914396151,6.06968731,128.96,128.91,7.75705311]
[1768914396456,2.37277504,128.94,128.9,7.75792097]
[1768914398356,6.06968731,128.95,128.9,27.15280072]
[1768914398653,2.37277504,128.95,128.9,47.84971299]
[1768914398961,2.37277504,128.95,128.9,44.15280072]
[1768914399757,6.06968731,128.95,128.9,44.15280072]
[1768914400659,6.06968731,128.95,128.9,63.65280072]
[1768914400847,2.37277504,128.95,128.9,63.65280072]
[1768914401451,2.37277504,128.97,128.92,3.69691227]
[1768914401648,2.37277504,128.97,128.92,19.5]
[1768914403068,6.06968731,128.97,128.93,7.75614674]
[1768914404270,2.37277504,128.97,128.93,7.75614674]
[1768914404469,6.06968731,128.97,128.93,7.75614674]
[1768914406780,6.06968731,128.97,128.93,19.5]
[1768914407176,13.82354262,128.97,128.93,19.5]
[1768914407350,8.00081193,128.96,128.93,19.5]
[1768914407676,7.99995485,128.95,128.93,19.5]
[1768914407973,7.9998318,128.94,128.93,19.5]
[1768914408279,15.7555584,128.94,128.91,36.5]
[1768914408457,9.98947997,128.94,128.91,36.5]
[1768914408652,7.7557266,128.94,128.91,36.5]
[1768914409058,9.98947997,128.94,128.91,19.5]
[1768914409382,7.99872705,128.93,128.91,19.5]
[1768914409553,2.23375337,128.93,128.91,19.5]
[1768914409875,2.23375337,128.93,128.9,17.0]
[1768914409876,2.23375337,128.93,128.9,36.5]
[1768914410176,2.23375337,128.93,128.9,19.5]
[1768914410382,9.98997105,128.93,128.9,19.5]
[1768914413180,9.93250244,128.93,128.9,19.5]
[1768914415482,2.17628476,128.93,128.9,19.5]
[1768914416462,9.93251495,128.93,128.9,19.5]
[1768914417072,7.75623019,128.93,128.9,19.5]
[1768914417257,7.75623019,128.93,128.88,36.6]
[1768914417258,2.27561789,128.91,128.88,36.6]
[1768914417577,2.23469167,128.91,128.88,19.6]
[1768914419388,10.03356979,128.9,128.88,0.1]
[1768914421380,2.27561789,128.89,128.87,29.37080582]
[1768914422783,3.69691227,128.91,128.87,29.37080582]
[1768914422784,10.03351581,128.91,128.87,9.87080582]
[1768914423780,7.75789792,128.91,128.87,9.87080582]
[1768914424080,10.03368603,128.9,128.87,9.87080582]
[1768914424786,2.27561789,128.9,128.87,9.87080582]
[1768914426890,10.03358437,128.9,128.87,9.87080582]
[1768914427185,10.03358437,128.9,128.87,29.37080582]
[1768914427583,19.39292564,128.92,128.87,33.06771809]
[1768914427584,2.27561789,128.92,128.87,33.06771809]
[1768914427800,10.03203136,128.93,128.87,33.06771809]
[1768914428088,10.03203136,128.93,128.88,17.0]
[1768914428282,7.75641347,128.93,128.88,17.0]
[1768914428484,10.03203136,128.93,128.88,17.0]
[1768914429101,10.03203136,128.93,128.88,24.75915394]
[1768914429589,10.03203136,128.93,128.88,17.0]
[1768914430000,10.03203136,128.93,128.87,29.37080582]
[1768914430001,2.27561789,128.91,128.87,29.37080582]
[1768914430169,5.97598084,128.91,128.88,17.0]
[1768914431289,2.27561789,128.91,128.87,29.37080582]
[1768914431671,2.21561787,128.91,128.87,29.37080582]
[1768914432094,38.76062401,129.0,128.87,33.07116877]
[1768914432272,27.94695664,128.97,128.87,33.07116877]
[1768914432472,3.70036295,128.94,128.88,27.15696905]
[1768914432689,5.76147638,128.93,128.88,46.65696905]
[1768914432899,3.70036295,128.93,128.88,46.65696905]
[1768914433395,3.70036295,128.93,128.88,27.25907955]
[1768914433772,2.27561789,128.93,128.88,27.25907955]
[1768914434775,5.97598084,128.93,128.88,27.25907955]
[1768914435092,2.27561789,128.93,128.88,27.25907955]
[1768914436495,2.27561789,128.94,128.89,20.70036295]
[1768914437084,2.27561789,128.94,128.89,40.20036295]
[1768914437493,2.27561789,128.94,128.9,7.7579519]
[1768914438574,2.27561789,128.93,128.89,44.25847867]
[1768914447098,2.21561789,128.93,128.89,44.25847867]
[1768914447400,3.70036295,128.96,128.89,67.35522613]
[1768914447602,5.77212714,128.95,128.89,67.35522613]
[1768914447901,5.77212714,128.94,128.89,67.35522613]
[1768914448205,11.45410413,128.97,128.9,3.70036295]
[1768914448500,9.38494813,128.96,128.9,23.20036295]
[1768914448690,11.45410413,128.97,128.9,23.20036295]
[1768914448996,7.89421123,128.96,128.9,23.20036295]
[1768914449202,2.20889521,128.96,128.9,23.20036295]
[1768914449403,2.20889521,128.96,128.91,7.75735008]
[1768914451096,2.20889521,128.97,128.92,17.0]
[1768914451295,2.20889521,128.97,128.92,20.70036295]
[1768914452100,2.20889521,128.97,128.92,40.20036295]
[1768914452907,2.20889521,128.97,128.92,36.5]
[1768914453084,2.20889521,128.97,128.93,7.75614674]
[1768914454803,2.20889521,128.96,128.92,44.25659846]
[1768914456495,3.70036295,128.96,128.92,17.0]
[1768914456703,2.20889521,128.95,128.92,24.75672131]
[1768914458304,2.20889521,128.95,128.92,7.75672131]
[1768914462214,2.20889521,128.95,128.92,27.25672131]
[1768914466419,2.20889521,128.95,128.92,19.5]
[1768914466599,2.19805743,128.93,128.88,38.89703195]
[1768914466799,5.89842038,128.93,128.89,24.75843273]
[1768914468217,2.19805743,128.93,128.89,24.75843273]
[1768914473127,5.89842038,128.93,128.89,44.25843273]
[1768914473329,2.3970516,128.92,128.89,44.25843273]
[1768914475226,2.3970516,128.92,128.89,27.25843273]
[1768914475427,2.3970516,128.92,128.89,44.25843273]
[1768914476439,6.09741455,128.94,128.89,44.25843273]
[1768914476642,2.3970516,128.93,128.89,44.25843273]
[1768914476816,2.3970516,128.93,128.89,27.25843273]
[1768914477113,2.3970516,128.93,128.89,44.25843273]
[1768914477742,2.3970516,128.93,128.89,27.25843273]
[1768914477929,2.3970516,128.93,128.89,44.25843273]
[1768914478328,2.3970516,128.93,128.89,27.25843273]
[1768914478638,2.3970516,128.93,128.89,44.25843273]
[1768914479244,2.3970516,128.93,128.89,27.25843273]
[1768914479443,2.3970516,128.93,128.89,44.25843273]
[1768914480846,2.3970516,128.93,128.89,27.25843273]
[1768914481326,2.3970516,128.92,128.89,44.25843273]
[1768914481836,2.3970516,128.91,128.88,7.75891904]
[1768914482047,6.09741455,128.89,128.87,9.87080582]
[1768914482235,3.70036295,128.9,128.87,9.87080582]
[1768914484152,2.3970516,128.89,128.87,9.87080582]
[1768914484341,2.3970516,128.87,128.84,2.62429329]
[1768914484653,2.3970516,128.87,128.85,7.7605862]
[1768914485045,2.3970516,128.9,128.86,9.98539374]
[1768914485349,2.3970516,128.89,128.86,9.98539374]
[1768914486138,2.3970516,128.89,128.85,9.98611514]
[1768914486946,2.3970516,128.89,128.86,2.22515279]
[1768914487124,6.09741455,128.91,128.86,9.9852444]
[1768914487452,2.3970516,128.89,128.86,9.9852444]
[1768914487950,2.27705155,128.89,128.86,9.9852444]
[1768914492138,2.3970516,128.9,128.87,2.22515279]
[1768914492539,2.3970516,128.9,128.87,21.72515279]
[1768914493633,2.3970516,128.9,128.88,7.7591558]
[1768914503246,2.3970516,128.9,128.88,27.2591558]
[1768914505467,2.1911732,128.92,128.9,19.5]
[1768914506046,2.1911732,128.93,128.9,21.74227107]
[1768914506246,2.1911732,128.93,128.9,5.94463241]
[1768914506767,2.1911732,128.95,128.91,2.24227107]
[1768914507357,2.1911732,128.95,128.92,7.75674837]
[1768914512081,2.1911732,128.95,128.92,27.25674837]
[1768914512266,2.1911732,128.95,128.92,29.49901944]
[1768914512462,2.1911732,128.95,128.92,48.89089036]
[1768914512876,2.1911732,128.95,128.92,65.89089036]
[1768914513772,2.1911732,128.95,128.92,46.49901944]
[1768914515273,2.1911732,128.95,128.92,69.5932517]
[1768914515479,2.1911732,128.96,128.93,5.94463241]
[1768914515664,2.1911732,128.96,128.93,25.44463241]
[1768914516350,2.1911732,128.96,128.93,33.20033328]
[1768914516767,2.1911732,128.96,128.93,13.70033328]
[1768914516966,2.1911732,128.96,128.93,30.70033328]
[1768914517565,2.1911732,128.96,128.93,26.99797194]
[1768914521286,2.1911732,128.96,128.93,24.75570087]
[1768914522285,2.1911732,128.96,128.93,26.99797194]
[1768914524687,2.1911732,128.96,128.93,30.70033328]
[1768914525089,2.1911732,128.96,128.93,26.99797194]
[1768914526886,2.1911732,128.96,128.93,46.49797194]
[1768914530491,2.1911732,128.96,128.93,44.25570087]
[1768914532388,2.1911732,128.96,128.93,46.55644638]
[1768914535487,2.1911732,128.96,128.93,44.25570087]
[1768914538997,2.1911732,128.96,128.93,46.40564339]
[1768914540512,2.1911732,128.96,128.93,44.25570087]
[1768914541381,2.1911732,128.96,128.93,46.40564339]
[1768914541576,2.1911732,128.96,128.93,50.10800473]
[1768914542112,2.1911732,128.96,128.93,46.40564339]
[1768914544230,2.1911732,128.96,128.93,50.10800473]
[1768914546808,2.1911732,128.96,128.93,46.40564339]
[1768914548902,2.1911732,128.96,128.93,50.10800473]
[1768914549220,2.1911732,128.96,128.93,46.40564339]
[1768914554122,2.30427763,128.97,128.94,3.69773015]
[1768914554325,2.30427763,128.98,128.95,2.14994252]
[1768914554516,5.51657521,128.97,128.95,2.14994252]
[1768914554702,2.30427763,128.98,128.95,2.14994252]
[1768914554902,5.51656108,128.97,128.95,2.14994252]
[1768914555104,2.30427763,128.98,128.95,2.14994252]
[1768914555304,2.30427763,128.98,128.96,5.84767267]
[1768914555722,2.30427763,129.0,128.96,25.34767267]
[1768914555920,7.52207925,129.0,128.97,5.84767267]
[1768914556120,2.30427763,129.0,128.97,5.84767267]
[1768914557432,2.30427763,129.0,128.97,13.60101465]
[1768914559512,2.30427763,129.0,128.98,3.69773015]
[1768914559728,2.30427763,129.0,128.97,13.60101465]
[1768914561634,2.30427763,129.0,128.98,3.69773015]
[1768914562335,2.30427763,129.0,128.98,11.4506243]
[1768914564236,2.30427763,129.0,128.98,7.75289415]
[1768914564837,2.30427763,129.0,128.98,27.25289415]
[1768914567636,2.30427763,129.0,128.98,19.5]
[1768914567826,2.26385063,128.99,128.98,14.74922888]
[1768914570238,2.26385063,129.01,128.98,14.74922888]
[1768914570536,2.26385063,129.01,128.98,2.35651536]
[1768914570740,2.26385063,129.01,128.97,6.05424551]
[1768914571642,2.26385063,129.01,128.97,2.35651536]
[1768914573225,2.26385063,129.01,128.98,2.35651536]
[1768914575921,2.26385063,129.01,128.98,13.80734102]
[1768914577942,2.26385063,129.02,128.99,2.35651536]
[1768914578240,2.26385063,129.02,128.98,27.13594556]
[1768914578241,2.26385063,129.02,128.98,2.35651536]
[1768914580447,2.26385063,129.02,128.99,2.35651536]
[1768914582527,2.26385063,129.02,128.99,10.10905353]
[1768914584849,2.26385063,129.02,128.99,2.35651536]
[1768914585449,2.26385063,129.02,128.99,10.10857566]
[1768914585653,2.26385063,129.02,129.0,2.30045044]
[1768914589647,2.26385063,129.02,129.0,2.27045046]
[1768914590941,2.38540373,129.03,129.0,2.27045046]
[1768914591959,2.38540373,129.03,129.0,10.02197203]
[1768914592337,0.2,129.03,129.01,2.30045044]
[1768914593549,2.35695135,129.03,129.0,13.06592916]
[1768914593952,2.35695135,129.03,129.0,10.94922888]
[1768914594960,2.35695135,129.03,129.0,13.06592916]
[1768914596740,2.13652242,129.02,128.99,9.86923398]
[1768914597143,2.13652242,129.02,128.99,2.11670028]
[1768914599066,2.13652242,129.02,128.98,9.86951829]
[1768914599362,2.1168208,129.01,128.98,9.86951829]
[1768914600671,2.1168208,129.01,128.98,2.11670028]
[1768914602172,2.1168208,129.01,128.98,9.86983294]
[1768914606492,2.1168208,129.01,128.97,9.87031316]
[1768914609360,2.1168208,129.01,128.98,2.11670028]
[1768914611987,7.95041101,129.03,128.99,9.86923923]
[1768914611988,2.24450069,129.03,128.99,9.86923923]
[1768914612198,7.25485234,129.02,128.99,9.86923923]
[1768914612365,2.03891443,129.02,128.99,9.86923923]
[1768914614869,2.03891443,129.02,128.99,7.75253895]
[1768914615069,2.03891443,129.02,128.99,9.86923923]
[1768914623793,5.87213556,129.03,129.0,2.01430393]
[1768914624387,3.8954563,129.03,129.0,2.01430393]
[1768914624697,1.971872,129.02,129.0,2.01430393]
[1768914624893,1.971872,129.02,128.98,9.76744395]
[1768914625093,7.18282851,129.01,128.98,2.01430393]
[1768914625397,5.66257625,129.01,128.98,2.01430393]
[1768914626574,5.66257625,129.01,128.98,1.98430394]
[1768914629092,5.66257625,129.01,128.98,1.95430395]
[1768914631279,1.99973218,128.98,128.95,2.01430393]
[1768914631477,5.69518848,128.98,128.95,2.01430393]
[1768914631978,1.99973218,128.98,128.95,2.01430393]
[1768914632179,5.69518848,128.98,128.95,2.01430393]
[1768914634705,17.18,129.03,128.94,2.01430393]
[1768914634706,3.6954563,128.96,128.94,2.01430393]
[1768914635006,5.68199217,128.97,128.94,2.01430393]
[1768914636409,1.97785631,128.96,128.94,2.01430393]
[1768914636609,5.67331261,128.96,128.93,2.01430393]
[1768914636804,1.97785631,128.96,128.93,2.01430393]
[1768914637008,3.6954563,128.95,128.93,2.01430393]
[1768914637191,1.97785631,128.96,128.93,2.01430393]
[1768914637391,5.67331261,128.96,128.93,2.01430393]
[1768914637600,3.6954563,128.95,128.93,2.01430393]
[1768914638014,1.97359116,128.95,128.92,2.01430393]
[1768914638205,5.66904746,128.95,128.92,2.01430393]
[1768914638392,1.969375,128.96,128.92,2.01430393]
[1768914638596,5.6648313,128.93,128.9,2.01430393]
[1768914639401,1.969375,128.93,128.9,2.01430393]
[1768914639600,5.6648313,128.93,128.9,2.01430393]
[1768914644223,5.63664341,128.92,128.88,9.771259]
[1768914644424,5.5766434,128.92,128.89,2.0121032]
[1768914644739,7.75496253,128.95,128.89,2.0121032]
[1768914644740,3.6954563,128.93,128.89,2.0121032]
[1768914646323,5.56899962,128.93,128.9,2.0121032]
[1768914649926,1.87354332,128.93,128.9,2.0121032]
[1768914650127,5.56899962,128.93,128.9,2.0121032]
[1768914653733,1.87354332,128.93,128.9,9.7696717]
[1768914655623,1.87354332,128.93,128.9,2.0121032]
[1768914655818,5.56899962,128.93,128.9,2.0121032]
[1768914656530,5.56899962,128.93,128.9,9.77000444]
[1768914657245,5.56899962,128.93,128.9,7.75790124]
[1768914657533,5.56899962,128.93,128.91,2.08931196]
[1768914659244,5.56899962,128.93,128.9,9.8472132]
[1768914659440,1.87354332,128.93,128.9,9.8472132]
[1768914659762,5.56899962,128.93,128.9,9.8472132]
[1768914661053,5.56899962,128.93,128.9,2.08931196]
[1768914661225,3.6954563,128.92,128.9,2.08931196]
[1768914661421,3.57545626,128.92,128.9,2.08931196]
[1768914661737,5.39379195,128.92,128.89,9.84784561]